fUSD/lending_fUSD_20250319
["ID","MTS","AMOUNT","RATE_DAILY","PERIOD"]
[356398900,1742404248022,-161.29584964,0.00029779,2]
[356398901,1742404248035,-338.70415036,0.00029779,2]
[356398902,1742404248045,-682.22,0.00029779,2]
[356398903,1742404248055,-488.19036313,0.00029779,2]
[356398904,1742404248068,-11.80963687,0.00029779,2]
[356398905,1742404248078,-500.0,0.00029779,2]
[356398906,1742404248087,-500.0,0.00029779,2]
[356398907,1742404248097,-500.0,0.00029779,2]
[356398908,1742404248107,-941.18,0.00029779,2]
[356398909,1742404248117,-856.3,0.00029779,2]
[356398910,1742404248127,-500.0,0.00029779,2]
[356398911,1742404248136,-500.0,0.00029779,2]
[356398912,1742404248146,-500.0,0.00029779,2]
[356398913,1742404248156,-200.0,0.00029779,2]
[356398914,1742404248166,-580.37,0.00029779,2]
[356398915,1742404248176,-500.0,0.00029779,2]
[356398916,1742404248185,-500.0,0.00029779,2]
[356398917,1742404248195,-500.0,0.00029779,2]
[356398918,1742404248205,-500.0,0.00029779,2]
[356398919,1742404248215,-500.0,0.00029779,2]
[356398920,1742404248224,-577.85,0.00029779,2]
[356398921,1742404248235,-605.66,0.00029779,2]
[356398922,1742404248245,-500.0,0.00029779,2]
[356398923,1742404248255,-113.39646313,0.00029779,2]
[356398924,1742404248294,-386.60353687,0.00029779,2]
[356398925,1742404248305,-951.26,0.00029779,2]
[356398926,1742404248315,-500.0,0.00029779,2]
[356398927,1742404248324,-245.33443236,0.00029779,2]
[356398928,1742404248349,-254.66556764,0.00029779,2]
[356398929,1742404248359,-500.0,0.00029779,2]
[356398930,1742404248369,-1256.11,0.00029779,2]
[356398931,1742404248379,-500.0,0.00029779,2]
[356398932,1742404248389,-500.0,0.00029779,2]
[356398933,1742404248400,-500.0,0.00029779,2]
[356398934,1742404248410,-500.0,0.00029779,2]
[356398935,1742404248420,-500.0,0.00029779,2]
[356398936,1742404248431,-404.67757807,0.00029779,2]
[356398937,1742404248445,-95.32242193,0.00029779,2]
[356398938,1742404248455,-814.74883807,0.00029779,2]
[356398939,1742404646226,712.89,0.0002681,2]
[356398944,1742405317493,1881.99999914,0.00025,7]
[356398976,1742405431671,-265.6165025,0.00028628,2]
[356398979,1742405431681,-202.6834975,0.00028628,2]
[356398984,1742405431726,-150.13103108,0.00028628,2]
[356398985,1742405431736,-201.88,0.00028646,120]
[356398986,1742405431746,-250.0,0.00028658,2]
[356398987,1742405431756,-168.9,0.00028696,2]
[356398988,1742405431766,-184.18,0.00028715,2]
[356398989,1742405431776,-150.0,0.00028718,7]
[356398990,1742405431785,-1000.0,0.00028722,2]
[356398991,1742405431795,-162.3,0.00028728,2]
[356398992,1742405431805,-281.85,0.00028756,2]
[356398993,1742405431814,-4935.452681,0.00029074,2]
[356398994,1742405431928,-254.70254848,0.00029074,2]
[356398995,1742405431944,-833.87477052,0.00029074,2]
[356398996,1742405431954,-712.89,0.00029074,2]
[356398997,1742405431963,-193.8131344,0.00029079,4]
[356398998,1742405431972,-265.61650248,0.00029109,2]
[356398999,1742405431981,-153.0,0.00029401,2]
[356399000,1742405431990,-11367.0,0.0002948,2]
[356399001,1742405432000,-150.0,0.00029495,2]
[356399003,1742405432009,-1137.28,0.00029496,2]
[356399005,1742405432019,-759.36765207,0.00029496,2]
[356399008,1742405432034,-19721.26234793,0.00029496,2]
[356399009,1742405432044,-345.1,0.000295,2]
[356399010,1742405432054,-265.61650248,0.0002959,2]
[356399012,1742405432063,-826.8989,0.00029669,2]
[356399013,1742405432073,-230.93161784,0.00029669,2]
[356399014,1742405432083,-191.77504316,0.00029669,2]
[356399015,1742405432092,-627.72339483,0.00029671,2]
[356399016,1742405432109,-1254.60110517,0.00029671,2]
[356399017,1742405432118,-10290.49492912,0.00029672,2]
[356399018,1742405437581,-494.01,0.00029672,2]
[356399019,1742405437636,-1464.46322864,0.00029672,2]
[356399020,1742405437647,-750.73795033,0.00029672,2]
[356399036,1742405439819,-2485.43080663,0.00029672,2]
[356399037,1742405439874,-1041.85,0.00029672,2]
[356399038,1742405439984,-500.0,0.00029672,2]
[356399066,1742405443338,-9992.41638528,0.00029672,2]
[356399067,1742405443348,-150.0,0.0002969,2]
[356399068,1742405443357,-150.0,0.00029699,2]
[356399069,1742405443367,-345.7,0.000297,2]
[356399070,1742405443377,-345.7,0.000297,2]
[356399071,1742405443387,-150.0,0.00029701,2]
[356399072,1742405443396,-150.0,0.00029702,2]
[356399073,1742405443405,-1000.0,0.00029705,2]
[356399074,1742405443415,-150.0,0.00029707,2]
[356399075,1742405443424,-150.0,0.00029707,2]
[356399076,1742405443433,-1000.0,0.00029708,2]
[356399077,1742405443443,-150.0,0.00029711,2]
[356399078,1742405443452,-150.0,0.00029713,2]
[356399079,1742405443462,-150.0,0.00029715,2]
[356399080,1742405443472,-150.0,0.00029716,2]
[356399081,1742405443482,-150.0,0.00029718,2]
[356399082,1742405443491,-230.93161776,0.0002972,2]
[356399083,1742405443501,-150.0,0.00029722,2]
[356399084,1742405443511,-150.0,0.00029722,2]
[356399085,1742405443520,-150.0,0.00029726,2]
[356399086,1742405443529,-150.0,0.00029726,2]
[356399087,1742405443539,-150.0,0.00029727,2]
[356399088,1742405443548,-150.0,0.00029729,2]
[356399089,1742405443557,-353.651,0.0002973,23]
[356399090,1742405443566,-150.0,0.00029732,2]
[356399091,1742405443576,-150.0,0.00029737,2]
[356399092,1742405443585,-150.0,0.00029737,2]
[356399093,1742405443595,-1094.96669705,0.00029737,2]
[356399094,1742405443605,-150.0,0.0002974,2]
[356399095,1742405443614,-1000.0,0.0002974,2]
[356399096,1742405443624,-150.0,0.00029745,2]
[356399097,1742405443634,-150.0,0.00029745,2]
[356399098,1742405443644,-230.93161776,0.00029746,2]
[356399099,1742405443653,-150.0,0.00029753,2]
[356399100,1742405443663,-1000.0,0.00029756,2]
[356399101,1742405443672,-150.0,0.00029765,2]
[356399102,1742405443682,-1000.0,0.00029765,2]
[356399103,1742405443691,-150.0,0.00029766,2]
[356399104,1742405443701,-150.0,0.00029766,2]
[356399105,1742405443711,-500.0,0.00029767,2]
[356399106,1742405443721,-500.0,0.00029767,2]
[356399107,1742405443731,-500.0,0.00029767,2]
[356399108,1742405443740,-507.14914408,0.00029767,2]
[356399109,1742405443750,-500.0,0.00029767,2]
[356399110,1742405443759,-500.0,0.00029767,2]
[356399111,1742405443769,-500.0,0.00029767,2]
[356399112,1742405443778,-402.10522594,0.00029767,2]
[356399113,1742405443788,-1210.48,0.00029768,2]
[356399114,1742405443797,-591.42,0.00029768,2]
[356399115,1742405443807,-1344.8,0.00029768,2]
[356399116,1742405443817,-1163.85,0.00029768,2]
[356399117,1742405443826,-2007.85,0.00029768,2]
[356399118,1742405443835,-603.21,0.00029768,2]
[356399119,1742405443845,-1799.3,0.00029768,2]
[356399120,1742405443854,-842.85,0.00029768,2]
[356399121,1742405443864,-1475.91,0.00029768,2]
[356399122,1742405443874,-2031.19,0.00029768,2]
[356399123,1742405443884,-535.19,0.00029768,2]
[356399124,1742405443894,-1161.5,0.00029768,2]
[356399125,1742405443903,-643.28,0.00029768,2]
[356399126,1742405443913,-798.8,0.00029768,2]
[356399127,1742405443923,-500.0,0.00029768,2]
[356399128,1742405443932,-934.77,0.00029768,2]
[356399129,1742405443942,-836.02,0.00029768,2]
[356399130,1742405443952,-500.0,0.00029768,2]
[356399131,1742405443961,-1427.25,0.00029768,2]
[356399132,1742405443972,-500.0,0.00029768,2]
[356399133,1742405443981,-869.13,0.00029768,2]
[356399134,1742405443992,-741.66,0.00029768,2]
[356399135,1742405444001,-1026.25,0.00029768,2]
[356399136,1742405444011,-1159.57,0.00029768,2]
[356399137,1742405444021,-500.0,0.00029768,2]
[356399138,1742405444031,-500.0,0.00029768,2]
[356399139,1742405444040,-500.0,0.00029768,2]
[356399140,1742405444049,-532.71,0.00029768,2]
[356399141,1742405444059,-726.48,0.00029768,2]
[356399142,1742405444069,-141015.884629,0.00029768,3]
[356399143,1742405444078,-15460.8950374,0.00029768,3]
[356399144,1742405444088,-100725.631878,0.00029769,3]
[356399145,1742405444098,-92765.3702243,0.00029769,3]
[356399146,1742405444111,-150.0,0.00029771,2]
[356399147,1742405444121,-34832.05417711,0.00029772,12]
[356399148,1742405444131,-230.93161776,0.00029772,2]
[356399149,1742405444141,-500.0,0.00029772,2]
[356399150,1742405444151,-500.0,0.00029772,2]
[356399151,1742405444160,-500.0,0.00029772,2]
[356399152,1742405444170,-500.0,0.00029772,2]
[356399153,1742405444179,-500.0,0.00029772,2]
[356399154,1742405444191,-370.52311399,0.00029772,2]
[356399155,1742405444200,-500.0,0.00029772,2]
[356399156,1742405444210,-500.0,0.00029772,2]
[356399157,1742405444220,-560.57,0.00029772,2]
[356399158,1742405444230,-500.0,0.00029772,2]
[356399159,1742405444240,-500.0,0.00029772,2]
[356399160,1742405444249,-562.96,0.00029772,2]
[356399161,1742405444259,-500.0,0.00029772,2]
[356399162,1742405444269,-597.9,0.00029772,2]
[356399163,1742405444279,-500.0,0.00029772,2]
[356399164,1742405444288,-500.0,0.00029772,2]
[356399165,1742405444297,-500.0,0.00029772,2]
[356399166,1742405444307,-521.59,0.00029772,2]
[356399167,1742405444317,-1162.03,0.00029772,2]
[356399168,1742405444326,-888.99,0.00029772,2]
[356399169,1742405444336,-1241.45,0.00029772,2]
[356399170,1742405444345,-600.29,0.00029772,2]
[356399171,1742405444355,-654.09,0.00029772,2]
[356399172,1742405444364,-500.0,0.00029772,2]
[356399173,1742405444374,-994.98,0.00029772,2]
[356399174,1742405444383,-500.0,0.00029772,2]
[356399175,1742405444394,-500.0,0.00029772,2]
[356399176,1742405444404,-1162.82,0.00029772,2]
[356399177,1742405444414,-500.0,0.00029772,2]
[356399178,1742405444423,-500.0,0.00029772,2]
[356399179,1742405444432,-500.0,0.00029772,2]
[356399180,1742405444442,-500.0,0.00029772,2]
[356399181,1742405444451,-745.19,0.00029772,2]
[356399182,1742405444460,-511.85,0.00029772,2]
[356399183,1742405444470,-500.0,0.00029772,2]
[356399184,1742405444480,-770.02,0.00029772,2]
[356399185,1742405444490,-500.0,0.00029772,2]
[356399186,1742405444499,-500.0,0.00029772,2]
[356399187,1742405444509,-1338.21,0.00029772,2]
[356399188,1742405444518,-711.08,0.00029772,2]
[356399189,1742405444528,-934.09,0.00029772,2]
[356399190,1742405444538,-957.85,0.00029772,2]
[356399191,1742405444547,-500.0,0.00029772,2]
[356399192,1742405444557,-500.0,0.00029772,2]
[356399193,1742405444567,-676.16,0.00029772,2]
[356399194,1742405444577,-622.0,0.00029772,2]
[356399195,1742405444586,-730.59,0.00029772,2]
[356399196,1742405444596,-500.0,0.00029772,2]
[356399197,1742405444606,-787.13,0.00029772,2]
[356399198,1742405444615,-1116.37,0.00029772,2]
[356399199,1742405444625,-1078.46,0.00029772,2]
[356399200,1742405444635,-726.53,0.00029772,2]
[356399201,1742405444645,-813.27,0.00029772,2]
[356399202,1742405444655,-696.37,0.00029772,2]
[356399203,1742405444665,-687.64,0.00029772,2]
[356399204,1742405444675,-500.0,0.00029772,2]
[356399205,1742405444684,-500.0,0.00029772,2]
[356399206,1742405444694,-874.7,0.00029772,2]
[356399207,1742405444703,-646.3,0.00029772,2]
[356399208,1742405444713,-500.0,0.00029772,2]
[356399209,1742405444727,-994.33,0.00029772,2]
[356399210,1742405444738,-500.0,0.00029772,2]
[356399211,1742405444747,-500.0,0.00029772,2]
[356399212,1742405444757,-500.0,0.00029772,2]
[356399213,1742405444766,-500.0,0.00029772,2]
[356399214,1742405444775,-500.0,0.00029772,2]
[356399215,1742405444785,-510.97594687,0.00029772,2]
[356399216,1742405444794,-521.31679766,0.00029772,2]
[356399217,1742405444803,-500.0,0.00029772,2]
[356399218,1742405444813,-500.0,0.00029772,2]
[356399219,1742405444822,-500.0,0.00029772,2]
[356399220,1742405444831,-500.0,0.00029772,2]
[356399221,1742405444841,-1287.88,0.00029772,2]
[356399222,1742405444850,-500.0,0.00029772,2]
[356399223,1742405444859,-540.45,0.00029772,2]
[356399224,1742405444868,-150.0,0.00029773,2]
[356399225,1742405444877,-1000.0,0.00029773,2]
[356399226,1742405444887,-150.0,0.00029774,2]
[356399227,1742405444896,-770.74,0.00029777,2]
[356399228,1742405444906,-665.43,0.00029777,2]
[356399229,1742405444915,-776.65,0.00029777,2]
[356399230,1742405444925,-578.24,0.00029777,2]
[356399231,1742405444935,-661.97,0.00029777,2]
[356399232,1742405444944,-500.0,0.00029777,2]
[356399233,1742405444955,-500.0,0.00029777,2]
[356399234,1742405444964,-500.0,0.00029777,2]
[356399235,1742405444976,-1453.62668,0.00029778,2]
[356399236,1742405444986,-156.956242,0.00029778,2]
[356399237,1742405444996,-151.886926,0.00029778,2]
[356399238,1742405445005,-500.0,0.00029778,2]
[356399239,1742405445016,-500.0,0.00029778,2]
[356399240,1742405445026,-500.0,0.00029778,2]
[356399241,1742405445035,-500.0,0.00029778,2]
[356399242,1742405445045,-1772.856501,0.00029778,2]
[356399243,1742405445055,-704.37,0.00029778,2]
[356399244,1742405445065,-500.0,0.00029778,2]
[356399245,1742405445075,-500.0,0.00029778,2]
[356399246,1742405445085,-500.0,0.00029778,2]
[356399247,1742405445099,-500.0,0.00029778,2]
[356399248,1742405445112,-527.34532844,0.00029778,2]
[356399249,1742405445122,-500.0,0.00029778,2]
[356399250,1742405445132,-592.24362403,0.00029778,2]
[356399251,1742405445142,-662.69,0.00029778,2]
[356399252,1742405445153,-500.0,0.00029778,2]
[356399253,1742405445163,-718.49,0.00029778,2]
[356399254,1742405445173,-500.0,0.00029778,2]
[356399255,1742405445184,-485.90046542,0.00029778,2]
[356399256,1742405445194,-500.0,0.00029778,2]
[356399257,1742405445204,-500.0,0.00029778,2]
[356399258,1742405445214,-500.0,0.00029778,2]
[356399259,1742405445228,-500.0,0.00029778,2]
[356399260,1742405445239,-500.0,0.00029778,2]
[356399261,1742405445249,-500.0,0.00029778,2]
[356399262,1742405445259,-500.0,0.00029778,2]
[356399263,1742405445269,-500.0,0.00029778,2]
[356399264,1742405445279,-527.86934219,0.00029778,2]
[356399265,1742405445288,-500.0,0.00029778,2]
[356399266,1742405445298,-500.0,0.00029778,2]
[356399267,1742405445307,-399.95598026,0.00029778,2]
[356399268,1742405445317,-500.0,0.00029778,2]
[356399269,1742405445327,-500.0,0.00029778,2]
[356399270,1742405445336,-500.0,0.00029778,2]
[356399271,1742405445346,-500.0,0.00029778,2]
[356399272,1742405445355,-578.65,0.00029778,2]
[356399273,1742405445364,-500.0,0.00029778,2]
[356399274,1742405445374,-500.0,0.00029778,2]
[356399275,1742405445383,-1148.4,0.00029778,2]
[356399276,1742405445392,-500.0,0.00029778,2]
[356399277,1742405445402,-500.0,0.00029778,2]
[356399278,1742405445411,-500.0,0.00029778,2]
[356399279,1742405445421,-500.0,0.00029778,2]
[356399280,1742405445430,-500.0,0.00029778,2]
[356399281,1742405445440,-500.0,0.00029778,2]
[356399282,1742405445449,-500.0,0.00029778,2]
[356399283,1742405445458,-860.88,0.00029778,2]
[356399284,1742405445469,-1786.33,0.00029778,2]
[356399285,1742405445478,-500.0,0.00029778,2]
[356399286,1742405445487,-500.0,0.00029778,2]
[356399287,1742405445498,-500.0,0.00029778,2]
[356399289,1742405445507,-500.0,0.00029778,2]
[356399291,1742405445516,-505.64961392,0.00029778,2]
[356399293,1742405445525,-500.0,0.00029778,2]
[356399295,1742405445535,-500.0,0.00029778,2]
[356399297,1742405445544,-588.1,0.00029778,2]
[356399299,1742405445553,-500.0,0.00029778,2]
[356399301,1742405445562,-500.0,0.00029778,2]
[356399302,1742405445570,-500.0,0.00029778,2]
[356399304,1742405445579,-535.5182694,0.00029778,2]
[356399306,1742405445589,-500.0,0.00029778,2]
[356399308,1742405445598,-500.0,0.00029778,2]
[356399310,1742405445607,-500.0,0.00029778,2]
[356399312,1742405445617,-500.0,0.00029778,2]
[356399319,1742405445844,-500.0,0.00029778,2]
[356399320,1742405445855,-966.8,0.00029778,2]
[356399321,1742405445865,-500.0,0.00029778,2]
[356399322,1742405445875,-500.0,0.00029778,2]
[356399323,1742405445885,-500.0,0.00029778,2]
[356399324,1742405445896,-500.0,0.00029778,2]
[356399325,1742405445906,-583.47,0.00029778,2]
[356399326,1742405445915,-500.0,0.00029778,2]
[356399327,1742405445926,-500.0,0.00029778,2]
[356399328,1742405445935,-587.55,0.00029778,2]
[356399329,1742405445945,-500.0,0.00029778,2]
[356399330,1742405445955,-500.0,0.00029778,2]
[356399331,1742405445964,-856.79,0.00029778,2]
[356399332,1742405445977,-500.0,0.00029778,2]
[356399333,1742405445987,-500.0,0.00029778,2]
[356399334,1742405445996,-500.0,0.00029778,2]
[356399335,1742405446006,-911.26,0.00029778,2]
[356399336,1742405446015,-755.74,0.00029778,2]
[356399337,1742405446025,-500.0,0.00029778,2]
[356399338,1742405446035,-804.03,0.00029778,2]
[356399339,1742405446045,-784.75,0.00029778,2]
[356399340,1742405446055,-500.0,0.00029778,2]
[356399341,1742405446064,-1024.92,0.00029778,2]
[356399342,1742405446074,-500.0,0.00029778,2]
[356399343,1742405446088,-1870.32,0.00029778,2]
[356399344,1742405446098,-409.73440936,0.00029778,2]
[356399345,1742405446110,-500.0,0.00029778,2]
[356399346,1742405446119,-578.04,0.00029778,2]
[356399347,1742405446129,-537.44,0.00029778,2]
[356399348,1742405446139,-500.0,0.00029778,2]
[356399349,1742405446150,-790.22,0.00029778,2]
[356399350,1742405446159,-501.57,0.00029778,2]
[356399351,1742405446169,-500.0,0.00029778,2]
[356399352,1742405446179,-500.0,0.00029778,2]
[356399353,1742405446190,-500.0,0.00029778,2]
[356399354,1742405446201,-500.0,0.00029778,2]
[356399355,1742405446210,-500.0,0.00029778,2]
[356399356,1742405446221,-500.0,0.00029778,2]
[356399357,1742405446231,-500.0,0.00029778,2]
[356399358,1742405446240,-500.0,0.00029778,2]
[356399359,1742405446250,-500.0,0.00029778,2]
[356399360,1742405446260,-500.0,0.00029778,2]
[356399361,1742405446270,-500.0,0.00029778,2]
[356399362,1742405446279,-566.12021172,0.00029778,2]
[356399363,1742405446289,-500.0,0.00029778,2]
[356399364,1742405446299,-500.0,0.00029778,2]
[356399365,1742405446308,-500.0,0.00029778,2]
[356399366,1742405446318,-588.8160023,0.00029778,2]
[356399367,1742405446328,-500.0,0.00029778,2]
[356399368,1742405446338,-500.0,0.00029778,2]
[356399369,1742405446348,-760.67,0.00029778,2]
[356399370,1742405446357,-500.0,0.00029778,2]
[356399371,1742405446367,-200.0,0.00029778,2]
[356399372,1742405446377,-500.0,0.00029778,2]
[356399373,1742405446386,-500.0,0.00029778,2]
[356399374,1742405446395,-591.74891054,0.00029778,2]
[356399375,1742405446405,-553.77,0.00029778,2]
[356399376,1742405446414,-500.0,0.00029778,2]
[356399377,1742405446424,-556.19,0.00029778,2]
[356399378,1742405446433,-500.0,0.00029778,2]
[356399379,1742405446443,-1103.62,0.00029778,2]
[356399380,1742405446453,-1203.77,0.00029778,2]
[356399381,1742405446463,-500.0,0.00029778,2]
[356399382,1742405446475,-500.0,0.00029778,2]
[356399383,1742405446484,-505.39681224,0.00029778,2]
[356399384,1742405446494,-500.0,0.00029778,2]
[356399385,1742405446503,-901.96,0.00029778,2]
[356399386,1742405446513,-500.0,0.00029778,2]
[356399387,1742405446523,-500.0,0.00029778,2]
[356399388,1742405446532,-500.0,0.00029778,2]
[356399389,1742405446542,-1141.14,0.00029778,2]
[356399390,1742405446551,-500.0,0.00029778,2]
[356399391,1742405446560,-500.0,0.00029778,2]
[356399392,1742405446570,-500.0,0.00029778,2]
[356399393,1742405446579,-500.0,0.00029778,2]
[356399394,1742405446589,-500.0,0.00029778,2]
[356399395,1742405446598,-911.62,0.00029778,2]
[356399396,1742405446611,-500.0,0.00029778,2]
[356399397,1742405446620,-500.0,0.00029778,2]
[356399398,1742405446630,-500.0,0.00029778,2]
[356399399,1742405446639,-500.0,0.00029778,2]
[356399400,1742405446649,-522.22,0.00029778,2]
[356399401,1742405446659,-500.0,0.00029778,2]
[356399402,1742405446668,-500.0,0.00029778,2]
[356399403,1742405446678,-159.522459,0.00029778,2]
[356399404,1742405446687,-500.0,0.00029778,2]
[356399405,1742405446697,-500.0,0.00029778,2]
[356399406,1742405446706,-683.86,0.00029778,2]
[356399407,1742405446719,-500.0,0.00029778,2]
[356399408,1742405446728,-695.4,0.00029778,2]
[356399409,1742405446738,-500.0,0.00029778,2]
[356399410,1742405446748,-500.0,0.00029778,2]
[356399411,1742405446757,-500.0,0.00029778,2]
[356399412,1742405446767,-500.0,0.00029778,2]
[356399413,1742405446777,-500.0,0.00029778,2]
[356399414,1742405446787,-500.0,0.00029778,2]
[356399415,1742405446797,-500.0,0.00029778,2]
[356399416,1742405446808,-597.16,0.00029778,2]
[356399417,1742405446818,-1101.26,0.00029778,2]
[356399418,1742405446827,-500.0,0.00029778,2]
[356399419,1742405446836,-500.0,0.00029778,2]
[356399420,1742405446848,-566.94023127,0.00029778,2]
[356399421,1742405446858,-500.0,0.00029778,2]
[356399422,1742405446867,-500.0,0.00029778,2]
[356399423,1742405446876,-500.0,0.00029778,2]
[356399424,1742405446885,-500.0,0.00029778,2]
[356399425,1742405446895,-842.59,0.00029778,2]
[356399426,1742405446904,-623.96,0.00029778,2]
[356399427,1742405446913,-500.0,0.00029778,2]
[356399428,1742405446923,-641.45,0.00029778,2]
[356399429,1742405446932,-896.13,0.00029778,2]
[356399430,1742405446942,-514.0387233,0.00029778,2]
[356399431,1742405446952,-500.0,0.00029778,2]
[356399432,1742405446961,-500.0,0.00029778,2]
[356399433,1742405446973,-500.0,0.00029778,2]
[356399434,1742405446983,-500.0,0.00029778,2]
[356399435,1742405446993,-500.0,0.00029778,2]
[356399436,1742405447002,-500.0,0.00029778,2]
[356399437,1742405447012,-500.0,0.00029778,2]
[356399438,1742405447022,-518.15995845,0.00029778,2]
[356399439,1742405447031,-500.0,0.00029778,2]
[356399440,1742405447041,-1930.2,0.00029778,2]
[356399441,1742405447052,-1320.02,0.00029778,2]
[356399442,1742405447061,-500.0,0.00029778,2]
[356399443,1742405447071,-500.0,0.00029778,2]
[356399444,1742405447081,-899.79,0.00029778,2]
[356399445,1742405447090,-785.96,0.00029778,2]
[356399446,1742405447101,-563.24,0.00029778,2]
[356399447,1742405447114,-500.0,0.00029778,2]
[356399448,1742405447124,-546.22142992,0.00029778,2]
[356399449,1742405447134,-1500.0,0.00029778,2]
[356399450,1742405447145,-515.22184544,0.00029778,2]
[356399451,1742405447155,-500.0,0.00029778,2]
[356399452,1742405447166,-527.41609708,0.00029778,2]
[356399453,1742405447176,-558.91,0.00029778,2]
[356399454,1742405447188,-507.83796139,0.00029778,2]
[356399455,1742405447199,-1018.1,0.00029778,2]
[356399456,1742405447209,-500.0,0.00029778,2]
[356399457,1742405447221,-500.0,0.00029778,2]
[356399458,1742405447231,-172.493051,0.00029778,2]
[356399459,1742405447240,-500.0,0.00029778,2]
[356399460,1742405447251,-500.0,0.00029778,2]
[356399461,1742405447262,-500.0,0.00029778,2]
[356399462,1742405447272,-586.5,0.00029778,2]
[356399463,1742405447281,-500.0,0.00029778,2]
[356399464,1742405447291,-507.95163497,0.00029778,2]
[356399465,1742405447301,-500.0,0.00029778,2]
[356399466,1742405447311,-500.0,0.00029778,2]
[356399467,1742405447321,-500.0,0.00029778,2]
[356399468,1742405447331,-500.0,0.00029778,2]
[356399469,1742405447341,-620.28050901,0.00029778,2]
[356399470,1742405447350,-500.0,0.00029778,2]
[356399471,1742405447360,-500.0,0.00029778,2]
[356399472,1742405447372,-500.0,0.00029778,2]
[356399473,1742405447383,-500.0,0.00029778,2]
[356399474,1742405447392,-500.0,0.00029778,2]
[356399475,1742405447403,-500.0,0.00029778,2]
[356399476,1742405447412,-526.81850473,0.00029778,2]
[356399477,1742405447422,-500.0,0.00029778,2]
[356399478,1742405447432,-500.0,0.00029778,2]
[356399479,1742405447442,-500.0,0.00029778,2]
[356399480,1742405447452,-500.0,0.00029778,2]
[356399481,1742405447462,-500.22,0.00029778,2]
[356399482,1742405447474,-500.0,0.00029778,2]
[356399483,1742405447484,-500.0,0.00029778,2]
[356399484,1742405447495,-500.0,0.00029778,2]
[356399485,1742405447505,-500.0,0.00029778,2]
[356399486,1742405447515,-500.0,0.00029778,2]
[356399487,1742405447526,-384.06874436,0.00029778,2]
[356399488,1742405447536,-588.25,0.00029778,2]
[356399489,1742405447546,-500.0,0.00029778,2]
[356399490,1742405447556,-500.0,0.00029778,2]
[356399491,1742405447566,-599.36,0.00029778,2]
[356399492,1742405447576,-597.88709627,0.00029778,2]
[356399493,1742405447586,-538.7,0.00029778,2]
[356399494,1742405447596,-510.15925833,0.00029778,2]
[356399495,1742405447606,-500.0,0.00029778,2]
[356399496,1742405447616,-500.0,0.00029778,2]
[356399497,1742405447626,-1418.97,0.00029778,2]
[356399498,1742405447636,-500.0,0.00029778,2]
[356399499,1742405447645,-500.0,0.00029778,2]
[356399500,1742405447656,-497.04386652,0.00029778,2]
[356399501,1742405447667,-500.0,0.00029778,2]
[356399502,1742405447677,-500.0,0.00029778,2]
[356399503,1742405447691,-500.0,0.00029778,2]
[356399504,1742405447703,-500.0,0.00029778,2]
[356399505,1742405447713,-500.0,0.00029778,2]